Workbook

Sheet اطقم كاملة درجة أولى
A5: الموديل | B5: العدد بناء على اذونات الصرف | C5: استلام المصنع | E5: المتوفر بالمخزون | G5: مبيعات نهائي | I5: مرتجعات | K5: مبيعات أولي | N5: سعر التكلفة | O5: الإجمالي
C6: مجموعات | D6: طقم | E6: مجموعات | F6: طقم | G6: مجموعات | H6: طقم | I6: مجموعات | J6: طقم | K6: مجموعات | L6: طقم
A7: أولاد
A8: B1 | B8: 204 | C8: 32 | D8: 13 | E8: =(C8-K8)+I8 -> 28 | F8: =(D8-L8)+J8 -> 12 | G8: =K8-I8 -> 4 | H8: =L8-J8 -> 1 | I8: 1 | J8: 2 | K8: 5 | L8: 3 | N8: 150.1 | O8: =N8*B8 -> 30620.4
A9: B2 | E9: =(C9-K9)+I9 -> 0 | F9: =(D9-L9)+J9 -> 0 | G9: =K9-I9 -> 0 | H9: =L9-J9 -> 0 | N9: 137.19 | O9: =N9*B9 -> 0
A10: B3 | B10: 222 | C10: 30 | D10: 42 | E10: 26 | F10: 42 | G10: 4 | H10: 0 | I10: 2 | K10: 6 | N10: 98.5 | O10: 21867
A11: B4 | B11: 194 | C11: 26 | D11: 36 | E11: 18 | F11: 36 | G11: 8 | H11: 0 | K11: 8 | N11: 100.81 | O11: 19557.14
A12: B5 | B12: 212 | C12: 28 | D12: 37 | E12: 26 | F12: 37 | G12: 2 | H12: 0 | I12: 3 | K12: 5 | N12: 160.2 | O12: 33962.4
A13: B6 | B13: 217 | C13: 32 | D13: 13 | E13: 24 | F13: 13 | G13: 8 | H13: 0 | K13: 8 | N13: 106.05 | O13: 23012.85
A14: B7 | B14: 159 | C14: 24 | D14: 10 | E14: 16 | F14: 10 | G14: 8 | H14: 0 | K14: 8 | N14: 103.77 | O14: 16499.43
A15: B8 | B15: 188 | C15: 28 | D15: 25 | E15: 20 | F15: 25 | G15: 8 | H15: 0 | K15: 8 | N15: 97.78 | O15: 18382.64
A16: B9 | E16: 0 | F16: 0 | G16: 0 | H16: 0 | N16: 105.09 | O16: 0
A17: B10 | B17: 215 | C17: 32 | D17: 20 | E17: 24 | F17: 20 | G17: 8 | H17: 0 | K17: 8 | N17: 106.86 | O17: 22974.9
A18: B11 | B18: 88 | C18: 13 | D18: 4 | E18: 5 | F18: 4 | G18: 8 | H18: 0 | K18: 8 | N18: 147.47 | O18: 12977.36
A19: B12 | B19: 131 | C19: 19 | D19: 8 | E19: 11 | F19: 8 | G19: 8 | H19: 0 | K19: 8 | N19: 126.03 | O19: 16509.93
A20: B13 | E20: 0 | F20: 0 | G20: 0 | H20: 0 | N20: 119.78 | O20: 0
A21: بنات
A22: G1 | B22: 190 | C22: 25 | D22: 39 | E22: 17 | F22: 39 | G22: 8 | H22: 0 | K22: 8 | N22: 134.1 | O22: =N22*B22 -> 25479
A23: G2 | C23: 32 | D23: 7 | E23: =(C23-K23)+I23 -> 24 | F23: =(D23-L23)+J23 -> 7 | G23: =K23-I23 -> 8 | H23: =L23-J23 -> 0 | K23: 8 | N23: 98.46 | O23: =N23*B23 -> 0
A24: G3 | B24: 190 | C24: 30 | D24: 2 | E24: 22 | F24: 2 | G24: 8 | H24: 0 | K24: 8 | N24: 114.27 | O24: 21711.3
A25: G4 | B25: 237 | C25: 32 | D25: 35 | E25: 24 | F25: 35 | G25: 8 | H25: 0 | K25: 8 | N25: 102.7 | O25: 24339.9
A26: G5 | B26: 174 | C26: 27 | D26: 6 | E26: 19 | F26: 6 | G26: 8 | H26: 0 | K26: 8 | N26: 108.25 | O26: 18835.5
A27: G6 | B27: 247 | C27: 26 | D27: 84 | E27: 18 | F27: 84 | G27: 8 | H27: 0 | K27: 8 | N27: 113.3 | O27: 27985.1
A28: G7 | B28: 1 | E28: 0 | F28: 0 | G28: 0 | H28: 0 | N28: 97.76 | O28: 97.76
A29: G8 | B29: 193 | C29: 30 | D29: 3 | E29: 22 | F29: 3 | G29: 8 | H29: 0 | K29: 8 | N29: 115.33 | O29: 22258.69
A30: G9 | C30: 28 | D30: 18 | E30: 20 | F30: 18 | G30: 8 | H30: 0 | K30: 8 | N30: 125.7 | O30: 0
A31: G10 | B31: 172 | C31: 25 | D31: 11 | E31: 17 | F31: 11 | G31: 8 | H31: 0 | K31: 8 | N31: 144.81 | O31: 24907.32
A32: G11 | B32: 196 | C32: 22 | D32: 12 | E32: 14 | F32: 12 | G32: 8 | H32: 0 | K32: 8 | N32: 152.67 | O32: 29923.32
A33: G12 | C33: 24 | D33: 37 | E33: 16 | F33: 37 | G33: 8 | H33: 0 | K33: 8 | N33: 124.18 | O33: 0
A34: G13 | B34: 223 | C34: 33 | D34: 11 | E34: 25 | F34: 11 | G34: 8 | H34: 0 | K34: 8 | N34: 121.55 | O34: 27105.65
A35: G14 | B35: 208 | C35: 28 | D35: 16 | E35: 20 | F35: 16 | G35: 8 | H35: 0 | K35: 8 | N35: 141.43 | O35: 29417.44
A36: G15 | B36: 173 | C36: 26 | D36: 8 | E36: 18 | F36: 8 | G36: 8 | H36: 0 | K36: 8 | N36: 109.28 | O36: 18905.44
B38: مجموع | C38: مجموع | D38: مجموع | E38: مجموع | F38: مجموع
B39: =SUM(B8:B36) -> 4034 | C39: =SUM(C8:C36) -> 652 | D39: =SUM(D8:D36) -> 497 | E39: =SUM(E8:E36) -> 474 | F39: =SUM(F8:F36) -> 496
C40: عدد الاطقم | D40: =(C39*6)+D39 -> 4409 | E40: عدد الاطقم | F40: =(E39*6)+F39 -> 3340
O43: مجموع
O44: =SUM(O8:O36) -> 487330.47

Sheet درجة تانية
A7: الموديل | C7: استلام المصنع | D7: المتوفر بالمخزون | E7: مبيعات
C8: طقم | D8: طقم | E8: طقم
A9: أولاد
A10: B1 | D10: =C10-E10 -> 0
A11: B2 | D11: 0
A12: B3 | D12: 0
A13: B4 | D13: 0
A14: B5 | D14: 0
A15: B6 | C15: 2 | D15: 2
A16: B7 | D16: 0
A17: B8 | D17: 0
A18: B9 | D18: 0
A19: B10 | D19: 0
A20: B11 | D20: 0
A21: B12 | D21: 0
A22: B13 | D22: 0
A23: بنات
A24: G1 | D24: =C24-E24 -> 0
A25: G2 | D25: 0
A26: G3 | D26: 0
A27: G4 | D27: 0
A28: G5 | D28: 0
A29: G6 | D29: 0
A30: G7 | D30: 0
A31: G8 | D31: 0
A32: G9 | D32: 0
A33: G10 | D33: 0
A34: G11 | D34: 0
A35: G12 | C35: 4 | D35: 4
A36: G13 | D36: -3 | E36: 3
A37: G14 | D37: 0
A38: G15 | D38: 0

Sheet فاتورة
A6: السادة / | B6: أ.مي لبيب | F6: التاريخ | G6: 2020-05-13
C8: الموديل | D8: العدد | E8: المقاس | F8: السعر للقطعة | G8: اجمالي
C9: B3 | D9: 2 | E9: 7 | F9: 124.44 | G9: =F9*D9 -> 248.88
C10: B4 | D10: 2 | E10: 5 | F10: 127.01 | G10: =F10*D10 -> 254.02
C11: B6 | D11: 1 | E11: 3 | F11: 132.83 | G11: 132.83
C12: B7 | D12: 2 | E12: 7 | F12: 130.3 | G12: 260.6
C13: B8 | D13: 2 | E13: 5 | F13: 123.65 | G13: 247.3
C14: B9 | D14: 2 | E14: 5 | F14: 131.76 | G14: 263.52
C15: B10 | D15: 2 | E15: 3 | F15: 133.74 | G15: 267.48
C16: G8 | D16: 1 | E16: 5 | F16: 143.15 | G16: 143.15
C17: G4 | D17: 1 | E17: 7 | F17: 129.11 | G17: 129.11
C18: G14 | D18: 1 | E18: 12 | F18: 172.15 | G18: 172.15
C19: G12 | D19: 1 | E19: 14 | F19: 152.98 | G19: 152.98
C20: G10 | D20: 1 | E20: 12 | F20: 175.9 | G20: 175.9
C21: B12 | D21: 2 | E21: 14 | F21: 155.03 | G21: 310.06
C22: B11 | D22: 1 | E22: 12 | F22: 178.86 | G22: 178.86
C23: B2 | D23: 1 | E23: 9 | F23: 167.43 | G23: 167.43
C24: G2 | D24: 1 | E24: 5 | F24: 124.4 | G24: 124.4
C25: G11 | D25: 1 | E25: 14 | F25: 184.63 | G25: 184.63
C27: اجمالي العدد | E27: =SUM(D9:D25) -> 24
C28: المبلغ الإجمالي | E28: =SUM(G9:G25) -> 3413.3
C29: النسبة المئوية للخصم | E29: 4
C30: مجموع الخصومات | E30: =E28*E29/100 -> 136.532
C31: المطلوب من العميل | E31: =E28-E30 -> 3276.768
B33: مسئولة المبيعات | E33: مدير المبيعات
B34: أ.منة الله عبد الرازق | E34: أ.حسان حمدي

Sheet المبيعات
AA1: B1
C2: الطلبية | AA2: B2
A3: رقم العميل | B3: الإسم | C3: الموديل | D3: العدد | AA3: B3
A4: 1 | B4: first kids | D4: مجموعة | E4: طقم | AA4: B4
C5: B1 | D5: 8 | AA5: B5
C6: B2 | D6: 8 | AA6: B6
C7: B3 | D7: 8 | AA7: B7
C8: B4 | D8: 8 | AA8: B8
C9: B5 | D9: 8 | AA9: B9
C10: B6 | D10: 8 | AA10: B10
C11: B7 | D11: 8 | AA11: B11
AA12: B12
AA13: B13
AA14: G1
AA15: G2
AA16: G3
AA17: G4
AA18: G5
AA19: G6
AA20: G7
AA21: G8
AA22: G9
AA23: G10
AA24: G11
AA25: G12
AA26: G13
AA27: G14
AA28: G15

Sheet قائمة الاسعار
A1: الموديل | C1: الطبعة | D1: عدد القطع | E1: التكلفة | F1: سعر البيع بربح 25% | G1: نسبة التسويق 1% من الربح بالجنيه لكل قطعة | H1: قائمة سعر التسويق للكمية كلها | I1: سعر البيع جملة | J1: نسبة التسويق 2% من الربح بالجنيه لكل قطعة | K1: سعر البيع بربح 40% | L1: نسبة التسويق 3% من الربح بالجنيه لكل قطعة | M1: سعر البيع بربح 60% | N1: نسبة التسويق 4% من الربح بالجنيه لكل قطعة | O1: سعر شركة الريادة | P1: سعر التجزئة | Q1: سعر القطعة في الدستة | R1: سعر الدستة | S1: ثمن القطعة في النصف دسته | T1: سعر الثري أو النصف دستة | U1: ثمن القطعة في المشكل
A3: B3 | B3: اولادى صغير | C3: سيارات | D3: 222 | E3: 98.5 | F3: =E3/0.75 -> 131.3333333 | G3: =(F3-E3)*0.01 -> 0.3283333333 | H3: =E3/0.9 -> 109.4444444 | I3: =E3/0.8 -> 123.125 | J3: =(I3-E3)*0.02 -> 0.4925 | K3: =E3/0.6 -> 164.1666667 | L3: =(K3-E3)*0.03 -> 1.97 | M3: =E3/0.4 -> 246.25 | N3: =(M3-E3)*0.04 -> 5.91 | O3: =P3*0.7 -> 114.9166667 | P3: =E3/0.6 -> 164.1666667 | Q3: =E3/0.9 -> 109.4444444 | R3: =H3*12 -> 1313.333333 | S3: =H3+10 -> 119.4444444 | T3: =S3*6 -> 716.6666667 | U3: =H3+15 -> 124.4444444 | V3: =P3*6 -> 985
A4: B4 | B4: اولادى صغير | C4: life is journey | D4: 207 | E4: 100.81 | F4: 134.4133333 | G4: 0.3360333333 | H4: =E4/0.9 -> 112.0111111 | I4: =E4/0.8 -> 126.0125 | J4: 0.50405 | K4: 168.0166667 | L4: 2.0162 | M4: 252.025 | N4: 6.0486 | O4: =P4*0.7 -> 117.6116667 | P4: 168.0166667 | Q4: 112.0111111 | R4: =H4*12 -> 1344.133333 | S4: =H4+10 -> 122.0111111 | T4: =S4*6 -> 732.0666667 | U4: 127.0111111 | V4: =P4*6 -> 1008.1
A5: B6 | B5: اولادى صغير | C5: سيارة | D5: 223 | E5: 106.05 | F5: 141.4 | G5: 0.3535 | H5: 117.8333333 | I5: =E5/0.8 -> 132.5625 | J5: 0.53025 | K5: 176.75 | L5: 2.121 | M5: 265.125 | N5: 6.363 | O5: 123.725 | P5: 176.75 | Q5: 117.8333333 | R5: 1414 | S5: 127.8333333 | T5: 767 | U5: 132.8333333 | V5: 1060.5
A6: B7 | B6: اولادى صغير | C6: دبابة | D6: 230 | E6: 103.7684959 | F6: 138.3579946 | G6: 0.3458949864 | H6: 115.2983288 | I6: 129.7106199 | J6: 0.5188424797 | K6: 172.9474932 | L6: 2.075369919 | M6: 259.4212398 | N6: 6.226109756 | O6: 121.0632453 | P6: 172.9474932 | Q6: 115.2983288 | R6: 1383.579946 | S6: 125.2983288 | T6: 751.7899729 | U6: 130.2983288 | V6: 0
A7: B8 | B7: اولادى صغير | C7: الديك | D7: 230 | E7: 97.78416667 | F7: 130.3788889 | G7: 0.3259472222 | H7: 108.6490741 | I7: 122.2302083 | J7: 0.4889208333 | K7: 162.9736111 | L7: 1.955683333 | M7: 244.4604167 | N7: 5.86705 | O7: 114.0815278 | P7: 162.9736111 | Q7: 108.6490741 | R7: 1303.788889 | S7: 118.6490741 | T7: 711.8944444 | U7: 123.6490741 | V7: 977.8416667
A8: B9 | B8: اولادى صغير | C8: مينيون | D8: 230 | E8: 105.0869231 | F8: 140.1158974 | G8: 0.3502897436 | H8: 116.7632479 | I8: 131.3586538 | J8: 0.5254346154 | K8: 175.1448718 | L8: 2.101738462 | M8: 262.7173077 | N8: 6.305215385 | O8: 122.6014103 | P8: 175.1448718 | Q8: 116.7632479 | R8: 1401.158974 | S8: 126.7632479 | T8: 760.5794872 | U8: 131.7632479 | V8: 0
A9: B10 | B9: اولادى صغير | C9: الفضاء | D9: 230 | E9: 106.8636667 | F9: 142.4848889 | G9: 0.3562122222 | H9: 118.7374074 | I9: 133.5795833 | J9: 0.5343183333 | K9: 178.1061111 | L9: 2.137273333 | M9: 267.1591667 | N9: 6.41182 | O9: 124.6742778 | P9: 178.1061111 | Q9: 118.7374074 | R9: 1424.848889 | S9: 128.7374074 | T9: 772.4244444 | U9: 133.7374074 | V9: 1068.636667
B10: المتوسط | H10: =AVERAGE(H3:H9) -> 114.1052782 | I10: =AVERAGE(I3:I9) -> 128.3684379 | O10: 119.8105421 | P10: =AVERAGE(P3:P9) -> 171.1579172 | R10: 1369.263338 | S10: 124.1052782 | T10: 744.6316689 | U10: 129.1052782 | V10: 0
A11: B1 | B11: اولادى كبير | C11: مقلم أبيض | D11: 223 | E11: 150.096861 | F11: =E11/0.75 -> 200.129148 | G11: =(F11-E11)*0.01 -> 0.50032287 | H11: 166.77429 | I11: 187.6210762 | J11: =(I11-E11)*0.02 -> 0.7504843049 | K11: =E11/0.6 -> 250.161435 | L11: =(K11-E11)*0.03 -> 3.00193722 | M11: =E11/0.4 -> 375.2421525 | N11: =(M11-E11)*0.04 -> 9.005811659 | O11: 175.1130045 | P11: =E11/0.6 -> 250.161435 | Q11: =E11/0.9 -> 166.77429 | R11: 2001.29148 | S11: 176.77429 | T11: 1060.64574 | U11: 181.77429 | V11: 1500.96861
A12: B2 | B12: اولادى كبير | C12: عشوائى طباعة يدوية | D12: 215 | E12: 137.1870833 | F12: 182.9161111 | G12: 0.4572902778 | H12: 152.4300926 | I12: 171.4838542 | J12: 0.6859354167 | K12: 228.6451389 | L12: 2.743741667 | M12: 342.9677083 | N12: 8.231225 | O12: 160.0515972 | P12: 228.6451389 | Q12: 152.4300926 | R12: 1829.161111 | S12: 162.4300926 | T12: 974.5805556 | U12: 167.4300926 | V12: 0
A13: B5 | B13: اولادى كبير | C13: never give up | D13: 212 | E13: 160.2 | F13: 213.6 | G13: 0.534 | H13: 178 | I13: 200.25 | J13: 0.801 | K13: 267 | L13: 3.204 | M13: 400.5 | N13: 9.612 | O13: 186.9 | P13: 267 | Q13: 178 | R13: 2136 | S13: 188 | T13: 1128 | U13: 193 | V13: 1602
A14: B11 | B14: اولادى كبير | C14: spot | D14: 200 | E14: 147.4699507 | F14: 196.626601 | G14: 0.4915665025 | H14: 163.8555008 | I14: 184.3374384 | J14: 0.7373497537 | K14: 245.7832512 | L14: 2.949399015 | M14: 368.6748768 | N14: 8.848197044 | O14: 172.0482759 | P14: 245.7832512 | Q14: 163.8555008 | R14: 1966.26601 | S14: 173.8555008 | T14: 1043.133005 | U14: 178.8555008 | V14: 1474.699507
A15: B12 | B15: اولادى كبير | C15: never say no | D15: 230 | E15: 126.0284681 | F15: 168.0379574 | G15: 0.4200948936 | H15: 140.0316312 | I15: 157.5355851 | J15: 0.6301423404 | K15: 210.0474468 | L15: 2.520569362 | M15: 315.0711702 | N15: 7.561708085 | O15: 147.0332128 | P15: 210.0474468 | Q15: 140.0316312 | R15: 1680.379574 | S15: 150.0316312 | T15: 900.1897872 | U15: 155.0316312 | V15: 1260.284681
A16: B13 | B16: اولادى كبير | C16: مقلم رمادي | D16: 230 | E16: 119.7783333 | F16: 159.7044444 | G16: 0.3992611111 | H16: 133.087037 | I16: 149.7229167 | J16: 0.5988916667 | K16: 199.6305556 | L16: 2.395566667 | M16: 299.4458333 | N16: 7.1867 | O16: 139.7413889 | P16: 199.6305556 | Q16: 133.087037 | R16: 1597.044444 | S16: 143.087037 | T16: 858.5222222 | U16: 148.087037 | V16: 1197.783333
B17: المتوسط | H17: =AVERAGE(H11:H16) -> 155.6964253 | I17: =AVERAGE(I11:I16) -> 175.1584784 | O17: 163.4812465 | P17: =AVERAGE(P11:P16) -> 233.5446379 | R17: 1868.357103 | S17: 165.6964253 | T17: 994.1785516 | U17: 170.6964253 | V17: 0
A18: G2 | B18: بناتى صغير | C18: عصيلر | D18: 220 | E18: 98.46 | F18: =E18/0.75 -> 131.28 | G18: =(F18-E18)*0.01 -> 0.3282 | H18: 109.4 | I18: 123.075 | J18: =(I18-E18)*0.02 -> 0.4923 | K18: =E18/0.6 -> 164.1 | L18: =(K18-E18)*0.03 -> 1.9692 | M18: =E18/0.4 -> 246.15 | N18: =(M18-E18)*0.04 -> 5.9076 | O18: 114.87 | P18: =E18/0.6 -> 164.1 | Q18: =E18/0.9 -> 109.4 | R18: 1312.8 | S18: 119.4 | T18: 716.4 | U18: 124.4 | V18: 984.6
A19: G3 | B19: بناتى صغير | C19: little princess | D19: 240 | E19: 114.2682927 | F19: 152.3577236 | G19: 0.3808943089 | H19: 126.9647696 | I19: 142.8353659 | J19: 0.5713414634 | K19: 190.4471545 | L19: 2.285365854 | M19: 285.6707317 | N19: 6.856097561 | O19: 133.3130081 | P19: 190.4471545 | Q19: 126.9647696 | R19: 1523.577236 | S19: 136.9647696 | T19: 821.7886179 | U19: 141.9647696 | V19: 0
A20: G4 | B20: بناتى صغير | C20: زرافة | D20: 240 | E20: 102.7 | F20: 136.9333333 | G20: 0.3423333333 | H20: 114.1111111 | I20: 128.375 | J20: 0.5135 | K20: 171.1666667 | L20: 2.054 | M20: 256.75 | N20: 6.162 | O20: 119.8166667 | P20: 171.1666667 | Q20: 114.1111111 | R20: 1369.333333 | S20: 124.1111111 | T20: 744.6666667 | U20: 129.1111111 | V20: 1027
A21: G5 | B21: بناتى صغير | C21: uni corn | D21: 230 | E21: 108.25 | F21: 144.3333333 | G21: 0.3608333333 | H21: 120.2777778 | I21: 135.3125 | J21: 0.54125 | K21: 180.4166667 | L21: 2.165 | M21: 270.625 | N21: 6.495 | O21: 126.2916667 | P21: 180.4166667 | Q21: 120.2777778 | R21: 1443.333333 | S21: 130.2777778 | T21: 781.6666667 | U21: 135.2777778 | V21: 1082.5
A22: G6 | B22: بناتى صغير | C22: ميني ماوس | D22: 247 | E22: 113.3 | F22: 151.0666667 | G22: 0.3776666667 | H22: 125.8888889 | I22: 141.625 | J22: 0.5665 | K22: 188.8333333 | L22: 2.266 | M22: 283.25 | N22: 6.798 | O22: 132.1833333 | P22: 188.8333333 | Q22: 125.8888889 | R22: 1510.666667 | S22: 135.8888889 | T22: 815.3333333 | U22: 140.8888889 | V22: 1133
A23: G7 | B23: بناتى صغير | C23: كلبوبة | D23: 230 | E23: 97.75833333 | F23: 130.3444444 | G23: 0.3258611111 | H23: 108.6203704 | I23: 122.1979167 | J23: 0.4887916667 | K23: 162.9305556 | L23: 1.955166667 | M23: 244.3958333 | N23: 5.8655 | O23: 114.0513889 | P23: 162.9305556 | Q23: 108.6203704 | R23: 1303.444444 | S23: 118.6203704 | T23: 711.7222222 | U23: 123.6203704 | V23: 0
A24: G8 | B24: بناتى صغير | C24: النحلة | D24: 290 | E24: 115.3333333 | F24: 153.7777778 | G24: 0.3844444444 | H24: 128.1481481 | I24: 144.1666667 | J24: 0.5766666667 | K24: 192.2222222 | L24: 2.306666667 | M24: 288.3333333 | N24: 6.92 | O24: 134.5555556 | P24: 192.2222222 | Q24: 128.1481481 | R24: 1537.777778 | S24: 138.1481481 | T24: 828.8888889 | U24: 143.1481481 | V24: 1153.333333
A25: G15 | B25: بناتى صغير | C25: دبدوبة | D25: 190 | E25: 109.275 | F25: 145.7 | G25: 0.36425 | H25: 121.4166667 | I25: 136.59375 | J25: 0.546375 | K25: 182.125 | L25: 2.1855 | M25: 273.1875 | N25: 6.5565 | O25: 127.4875 | P25: 182.125 | Q25: 121.4166667 | R25: 1457 | S25: 131.4166667 | T25: 788.5 | U25: 136.4166667 | V25: 0
B26: المتوسط | H26: =AVERAGE(H18:H25) -> 119.3534666 | I26: =AVERAGE(I18:I25) -> 134.2726499 | O26: 125.3211399 | P26: =AVERAGE(P18:P25) -> 179.0301999 | R26: 1432.241599 | S26: 129.3534666 | T26: 776.1207995 | U26: 134.3534666 | V26: 0
A27: G1 | B27: بناتى كبير | C27: this love | D27: 190 | E27: 134.1 | F27: =E27/0.75 -> 178.8 | G27: =(F27-E27)*0.01 -> 0.447 | H27: 149 | I27: 167.625 | J27: =(I27-E27)*0.02 -> 0.6705 | K27: =E27/0.6 -> 223.5 | L27: =(K27-E27)*0.03 -> 2.682 | M27: =E27/0.4 -> 335.25 | N27: =(M27-E27)*0.04 -> 8.046 | O27: 156.45 | P27: =E27/0.6 -> 223.5 | Q27: =E27/0.9 -> 149 | R27: 1788 | S27: 159 | T27: 954 | U27: 164 | V27: =P27*6 -> 1341
A28: G9 | B28: بناتى كبير | C28: love | D28: 189 | E28: 125.7 | F28: =E28/0.75 -> 167.6 | G28: =(F28-E28)*0.01 -> 0.419 | H28: 139.6666667 | I28: 157.125 | J28: 0.6285 | K28: 209.5 | L28: 2.514 | M28: 314.25 | N28: 7.542 | O28: 146.65 | P28: 209.5 | Q28: 139.6666667 | R28: 1676 | S28: 149.6666667 | T28: 898 | U28: 154.6666667 | V28: =P28*6 -> 1257
A29: G10 | B29: بناتى كبير | C29: أنسة | D29: 158 | E29: 144.8101266 | F29: 193.0801688 | G29: 0.4827004219 | H29: 160.9001406 | I29: 181.0126582 | J29: 0.7240506329 | K29: 241.350211 | L29: 2.896202532 | M29: 362.0253165 | N29: 8.688607595 | O29: 168.9451477 | P29: 241.350211 | Q29: 160.9001406 | R29: 1930.801688 | S29: 170.9001406 | T29: 1025.400844 | U29: 175.9001406 | V29: 1448.101266
A30: G11 | B30: بناتى كبير | C30: rabbit | D30: 180 | E30: 152.6666667 | F30: 203.5555556 | G30: 0.5088888889 | H30: 169.6296296 | I30: 190.8333333 | J30: 0.7633333333 | K30: 254.4444444 | L30: 3.053333333 | M30: 381.6666667 | N30: 9.16 | O30: 178.1111111 | P30: 254.4444444 | Q30: 169.6296296 | R30: 2035.555556 | S30: 179.6296296 | T30: 1077.777778 | U30: 184.6296296 | V30: 1526.666667
A31: G12 | B31: بناتى كبير | C31: بالونات | D31: 203 | E31: 124.18 | F31: 165.5733333 | G31: 0.4139333333 | H31: 137.9777778 | I31: 155.225 | J31: 0.6209 | K31: 206.9666667 | L31: 2.4836 | M31: 310.45 | N31: 7.4508 | O31: 144.8766667 | P31: 206.9666667 | Q31: 137.9777778 | R31: 1655.733333 | S31: 147.9777778 | T31: 887.8666667 | U31: 152.9777778 | V31: 1241.8
A32: G13 | B32: بناتى كبير | C32: lovely | D32: 220 | E32: 121.55 | F32: 162.0666667 | G32: 0.4051666667 | H32: 135.0555556 | I32: 151.9375 | J32: 0.60775 | K32: 202.5833333 | L32: 2.431 | M32: 303.875 | N32: 7.293 | O32: 141.8083333 | P32: 202.5833333 | Q32: 135.0555556 | R32: 1620.666667 | S32: 145.0555556 | T32: 870.3333333 | U32: 150.0555556 | V32: 1215.5
A33: G14 | B33: بناتى كبير | C33: meow | D33: 200 | E33: 141.43125 | F33: 188.575 | G33: 0.4714375 | H33: 157.1458333 | I33: 176.7890625 | J33: 0.70715625 | K33: 235.71875 | L33: 2.828625 | M33: 353.578125 | N33: 8.485875 | O33: 165.003125 | P33: 235.71875 | Q33: 157.1458333 | R33: 1885.75 | S33: 167.1458333 | T33: 1002.875 | U33: 172.1458333 | V33: 1414.3125
B34: المتوسط | H34: =AVERAGE(H27:H33) -> 149.9108005 | I34: =AVERAGE(I27:I33) -> 168.6496506 | O34: 157.4063405 | P34: =AVERAGE(P27:P33) -> 224.8662008 | R34: 1798.929606 | S34: 159.9108005 | T34: 959.4648031 | U34: 164.9108005 | V34: =SUM(V3:V33) -> 26960.62823
